bitfinex/quotes_SOLUSD_20250403
["timestamp","ask_amount","ask_price","bid_price","bid_amount"]
[1743704941811,17.32122803,114.47,114.45,8.7374]
[1743704943019,17.32122803,114.48,114.44,30.5826]
[1743704943716,36.11303846,114.49,114.44,47.90382803]
[1743704943919,36.11303846,114.49,114.45,17.32122803]
[1743704944826,36.11303846,114.49,114.45,26.05792803]
[1743704945119,18.79181043,114.49,114.45,26.05792803]
[1743704946623,27.52631043,114.49,114.45,26.05792803]
[1743704947326,18.79181043,114.49,114.45,26.05792803]
[1743704947504,154.79181043,114.49,114.45,26.05792803]
[1743704948324,154.79181043,114.49,114.46,17.32122803]
[1743704948519,154.79181043,114.49,114.45,30.5802]
[1743704948520,136.0,114.49,114.48,17.32122803]
[1743704948828,136.0,114.51,114.48,17.32122803]
[1743704949719,136.0,114.51,114.49,8.7343]
[1743704950902,20.0,114.52,114.49,8.7343]
[1743704951124,154.79181043,114.53,114.49,26.05552803]
[1743704952423,136.0,114.53,114.5,17.32122803]
[1743704952634,43.72662803,114.56,114.51,17.32122803]
[1743704952810,179.72662803,114.56,114.52,17.32122803]
[1743704953205,162.4054,114.56,114.52,17.32122803]
[1743704953406,136.0,114.56,114.53,17.32122803]
[1743704954022,136.0,114.56,114.52,26.05252803]
[1743704954739,136.0,114.56,114.54,17.32122803]
[1743704955041,189.86902803,114.58,114.53,17.32122803]
[1743704955828,199.57838187,114.58,114.53,27.03058187]
[1743704957110,190.85058187,114.58,114.53,27.03058187]
[1743704958026,160.82071043,114.59,114.55,27.03058187]
[1743704958331,154.79181043,114.59,114.55,27.03058187]
[1743704959027,20.0,114.63,114.58,27.03058187]
[1743704959333,47.03058187,114.63,114.58,27.03058187]
[1743704959532,27.03058187,114.62,114.58,27.03058187]
[1743704959732,27.03058187,114.62,114.56,1.5509]
[1743704959733,27.03058187,114.62,114.57,27.03058187]
[1743704959932,27.03058187,114.61,114.57,8.7276]
[1743704960130,27.03058187,114.61,114.57,35.75818187]
[1743704960915,45.8223923,114.62,114.57,35.75818187]
[1743704962636,183.03058187,114.63,114.58,27.03058187]
[1743704963620,157.5968,114.66,114.61,27.03058187]
[1743704963825,20.0,114.66,114.63,27.03058187]
[1743704964136,136.0,114.67,114.63,27.03058187]
[1743704964339,189.62354344,114.68,114.64,27.03058187]
[1743704964633,189.62354344,114.68,114.65,8.7221]
[1743704965634,189.62354344,114.68,114.64,8.7226]
[1743704965939,163.17274344,114.68,114.64,35.75318187]
[1743704966151,47.03058187,114.7,114.66,27.03058187]
[1743704966521,20.0,114.7,114.66,27.03058187]
[1743704966742,154.79181043,114.71,114.67,8.7206]
[1743704966938,27.03058187,114.7,114.67,8.7206]
[1743704967141,154.79181043,114.71,114.67,8.7206]
[1743704967324,181.8223923,114.71,114.67,8.7206]
[1743704967640,181.8223923,114.71,114.65,35.75238187]
[1743704967641,27.03058187,114.69,114.65,35.75238187]
[1743704967840,27.03058187,114.69,114.65,8.7218]
[1743704968028,47.03058187,114.7,114.65,35.75238187]
[1743704968539,136.0,114.71,114.67,27.03058187]
[1743704968839,136.0,114.71,114.67,35.75048187]
[1743704969043,163.03058187,114.71,114.67,35.75048187]
[1743704969229,171.74818187,114.71,114.67,35.75048187]
[1743704969535,136.0,114.71,114.67,35.75048187]
[1743704969931,136.0,114.71,114.68,27.03058187]
[1743704970728,20.0,114.72,114.69,8.7191]
[1743704971530,47.03058187,114.72,114.68,35.75008187]
[1743704971731,47.03058187,114.72,114.68,8.7195]
[1743704973822,183.03058187,114.72,114.68,8.7195]
[1743704974027,163.03058187,114.72,114.68,8.7195]
[1743704974641,27.03058187,114.71,114.68,8.7195]
[1743704975152,183.03058187,114.72,114.68,8.7195]
[1743704976247,163.03058187,114.72,114.68,35.75008187]
[1743704976632,136.0,114.72,114.68,35.75008187]
[1743704977149,163.03058187,114.72,114.68,35.75008187]
[1743704977346,27.03058187,114.71,114.67,8.7204]
[1743704978350,27.03058187,114.71,114.67,35.75098187]
[1743704979044,163.03058187,114.72,114.67,35.75098187]
[1743704979854,27.03058187,114.72,114.67,35.75098187]
[1743704980857,27.03058187,114.72,114.68,27.03058187]
[1743704981234,156.0,114.74,114.7,27.03058187]
[1743704981435,181.8223923,114.75,114.7,27.03058187]
[1743704981643,20.0,114.76,114.71,27.03058187]
[1743704981844,163.03058187,114.77,114.72,27.03058187]
[1743704982747,163.03058187,114.77,114.73,8.7161]
[1743704982944,27.03058187,114.77,114.73,8.7161]
[1743704983260,27.03058187,114.76,114.73,8.7161]
[1743704983432,20.0,114.73,114.67,21.801]
[1743704983635,27.03058187,114.71,114.67,21.801]
[1743704984048,27.03058187,114.71,114.67,48.83158187]
[1743704984255,27.03058187,114.71,114.68,8.7199]
[1743704985453,43.56758187,114.72,114.68,8.7199]
[1743704985949,27.03058187,114.71,114.68,8.7199]
[1743704987044,27.03058187,114.71,114.67,8.7206]
[1743704987953,27.03058187,114.71,114.67,35.75118187]
[1743704988948,136.0,114.73,114.7,61.74888187]
[1743704989168,20.0,114.75,114.71,27.03058187]
[1743704989458,27.03058187,114.75,114.71,27.03058187]
[1743704990356,27.03058187,114.75,114.7,83.54478187]
[1743704990563,27.03058187,114.74,114.7,56.5142]
[1743704990973,27.03058187,114.74,114.7,83.54478187]
[1743704991569,27.03058187,114.74,114.7,56.5142]
[1743704992677,34.85058187,114.74,114.7,56.5142]
[1743704993280,136.0,114.75,114.72,27.03058187]
[1743704993654,136.0,114.75,114.71,28.68348187]
[1743704994474,136.0,114.75,114.72,27.03058187]
[1743704994853,136.0,114.75,114.71,28.68348187]
[1743704995278,136.0,114.75,114.72,30.5089]
[1743704997075,136.0,114.75,114.72,57.53948187]
[1743704997365,136.0,114.75,114.74,8.7153]
[1743704997547,54.83058187,114.77,114.74,30.5036]
[1743704998974,47.03058187,114.77,114.74,30.5036]
[1743704999151,54.83058187,114.77,114.74,30.5036]
[1743704999547,54.83058187,114.77,114.74,21.7883]
[1743705000057,27.8,114.77,114.74,21.7883]
[1743705000252,54.83058187,114.77,114.74,21.7883]
[1743705001485,27.03058187,114.76,114.73,21.7902]
[1743705001697,54.83058187,114.77,114.73,21.7902]
[1743705002270,34.83058187,114.77,114.73,48.82078187]
[1743705002456,7.8,114.77,114.74,27.03058187]
[1743705002654,136.0,114.8,114.76,27.03058187]
[1743705002854,20.0,114.83,114.79,27.03058187]
[1743705003055,7.8,114.83,114.75,6.0142]
[1743705003262,20.0,114.79,114.74,1.5958]
[1743705003451,189.6223923,114.78,114.73,57.53688187]
[1743705003654,47.03058187,114.77,114.73,30.5063]
[1743705003944,27.03058187,114.76,114.73,30.5063]
[1743705004157,20.0,114.77,114.73,30.5063]
[1743705004158,27.03058187,114.75,114.73,30.5063]
[1743705004359,34.83058187,114.74,114.73,8.7161]
[1743705004571,34.83058187,114.74,114.72,8.7164]
[1743705004746,34.83058187,114.74,114.7,8.7183]
[1743705004747,201.8223923,114.73,114.7,8.7183]
[1743705004945,27.03058187,114.71,114.7,8.7183]
[1743705005673,27.03058187,114.71,114.69,21.7969]
[1743705006250,163.03058187,114.72,114.69,21.7969]
[1743705006447,27.03058187,114.71,114.69,21.7969]
[1743705006667,163.03058187,114.72,114.69,21.7969]
[1743705007359,136.0,114.72,114.69,48.82748187]
[1743705007550,136.0,114.72,114.69,57.54658187]
[1743705007752,136.0,114.72,114.7,27.03058187]
[1743705008299,136.0,114.72,114.69,57.54658187]
[1743705008463,136.0,114.72,114.69,30.516]
[1743705008464,163.03058187,114.72,114.69,30.516]
[1743705008774,136.0,114.72,114.69,57.54658187]
[1743705008956,136.0,114.75,114.71,27.03058187]
[1743705009147,136.0,114.75,114.73,27.03058187]
[1743705009474,65.8223923,114.75,114.7,27.03058187]
[1743705009772,201.8223923,114.75,114.71,8.7176]
[1743705009974,27.03058187,114.73,114.71,8.7176]
[1743705010159,47.03058187,114.73,114.71,8.7176]
[1743705010769,7.8,114.74,114.71,8.7176]
[1743705011065,7.8,114.74,114.71,30.5116]
[1743705011269,38.79181043,114.73,114.71,8.7176]
[1743705011674,38.79181043,114.73,114.69,48.82768187]
[1743705011675,34.83058187,114.74,114.7,30.5142]
[1743705012057,34.83058187,114.74,114.7,57.54478187]
[1743705012258,34.83058187,114.74,114.7,30.5142]
[1743705012665,34.83058187,114.74,114.7,57.54478187]
[1743705012971,7.8,114.74,114.7,57.54478187]
[1743705014079,18.79181043,114.74,114.7,57.54478187]
[1743705014267,183.03058187,114.75,114.7,57.54478187]
[1743705014466,183.03058187,114.75,114.7,30.5142]
[1743705014671,183.03058187,114.75,114.71,27.03058187]
[1743705015376,183.03058187,114.75,114.7,57.54478187]
[1743705015671,162.6375,114.78,114.7,74.1061]
[1743705015870,18.79181043,114.77,114.74,30.5036]
[1743705016080,47.03058187,114.76,114.74,30.5036]
[1743705016577,20.0,114.76,114.74,30.5036]
[1743705016779,20.0,114.76,114.74,8.7153]
[1743705017075,27.03058187,114.77,114.74,30.5036]
[1743705018568,0.14216157,114.73,114.7,21.7952]
[1743705018875,27.03058187,114.72,114.71,8.7176]
[1743705019072,163.17274344,114.73,114.71,8.7176]
[1743705019860,163.03058187,114.73,114.7,21.7952]
[1743705020064,136.0,114.73,114.7,48.82578187]
[1743705020577,183.03058187,114.73,114.7,21.7952]
[1743705021659,136.0,114.73,114.7,48.82578187]
[1743705021855,136.0,114.73,114.7,57.54408187]
[1743705022477,136.0,114.73,114.7,30.5135]
[1743705022791,156.0,114.73,114.7,30.5135]
[1743705023361,183.03058187,114.73,114.7,30.5135]
[1743705026674,136.0,114.73,114.7,27.03058187]
[1743705026874,136.0,114.73,114.69,27.03058187]
[1743705027287,27.03058187,114.72,114.7,26.0]
[1743705027476,183.03058187,114.73,114.7,26.0]
[1743705028683,156.0,114.73,114.71,8.7176]
[1743705029260,183.03058187,114.73,114.71,8.7176]
[1743705029677,45.8223923,114.72,114.7,34.7179]
[1743705029879,20.0,114.68,114.63,1.5744]
[1743705030195,47.03058187,114.68,114.63,28.60498187]
[1743705030407,47.03058187,114.68,114.64,27.03058187]
[1743705030617,47.03058187,114.68,114.65,8.7221]
[1743705030778,20.0,114.68,114.65,8.7221]
[1743705031112,20.0,114.68,114.65,30.5275]
[1743705032310,38.64964886,114.71,114.66,27.03058187]
[1743705032509,142.3829,114.73,114.68,27.03058187]
[1743705032510,0.14216157,114.72,114.68,27.03058187]
[1743705032680,162.3829,114.73,114.69,27.03058187]
[1743705032878,189.41348187,114.73,114.69,27.03058187]
[1743705033081,189.41348187,114.73,114.68,27.03058187]
[1743705033082,18.79181043,114.72,114.68,27.03058187]
[1743705033283,45.8223923,114.72,114.68,27.03058187]
[1743705034809,45.8223923,114.72,114.69,8.7191]
[1743705035685,189.41348187,114.73,114.69,30.5169]
[1743705036692,20.0,114.71,114.69,8.7191]
[1743705037280,47.03058187,114.71,114.69,8.7191]
[1743705037802,47.03058187,114.71,114.68,8.7195]
[1743705038095,45.8223923,114.7,114.68,8.7195]
[1743705038901,20.0,114.69,114.67,8.7206]
[1743705039116,45.8223923,114.68,114.67,8.7206]
[1743705039408,18.79181043,114.68,114.67,8.7206]
[1743705039891,181.8223923,114.68,114.65,8.7221]
[1743705043199,136.0,114.73,114.7,26.0]
[1743705043378,136.0,114.73,114.67,35.06018187]
[1743705043379,169.14198187,114.76,114.71,27.03058187]
[1743705044600,45.8223923,114.75,114.7,27.03058187]
[1743705044909,27.03058187,114.74,114.7,27.03058187]
[1743705045108,27.03058187,114.74,114.71,8.7176]
[1743705045307,18.79181043,114.75,114.71,57.54218187]
[1743705045695,45.8223923,114.75,114.71,30.5116]
[1743705046202,65.8223923,114.75,114.71,30.5116]
[1743705046580,27.03058187,114.74,114.71,30.5116]
[1743705047379,136.0,114.74,114.71,30.5116]
[1743705047996,136.0,114.74,114.73,26.0]
[1743705049287,136.0,114.74,114.73,34.7161]
[1743705050606,136.0,114.74,114.73,61.74668187]
[1743705050810,110.85,114.77,114.73,83.53688187]
[1743705051397,137.88058187,114.77,114.73,83.53688187]
[1743705051912,110.85,114.77,114.73,83.53688187]
[1743705052808,18.79181043,114.78,114.74,27.03058187]
[1743705053000,136.6723923,114.78,114.74,27.03058187]
[1743705053314,136.6723923,114.78,114.73,83.53688187]
[1743705053798,45.8223923,114.77,114.73,83.53688187]
[1743705054196,18.79181043,114.77,114.73,83.53688187]
[1743705054390,90.85,114.77,114.75,27.03058187]
[1743705054986,90.85,114.77,114.76,53.03058187]
[1743705055204,90.85,114.77,114.76,26.0]
[1743705055409,90.85,114.77,114.75,27.03058187]
[1743705055600,90.85,114.77,114.76,8.7138]
[1743705056497,90.85,114.82,114.79,26.0]
[1743705056705,90.85,114.83,114.8,27.03058187]
[1743705057217,90.85,114.83,114.8,26.0]
[1743705057622,90.85,114.83,114.81,8.71]
[1743705057916,117.88058187,114.83,114.81,8.71]
[1743705059413,18.79181043,114.82,114.81,8.71]
[1743705059619,45.8223923,114.82,114.81,8.71]
[1743705059820,45.8223923,114.82,114.78,21.78]
[1743705060021,117.88058187,114.81,114.79,8.7111]
[1743705060606,90.85,114.81,114.79,8.7111]
[1743705060818,117.88058187,114.81,114.79,8.7111]
[1743705061404,45.8223923,114.8,114.79,8.7111]
[1743705061644,65.8223923,114.8,114.77,8.713]
[1743705061851,27.03058187,114.78,114.75,8.7145]
[1743705062119,46.10671544,114.76,114.75,8.7145]
[1743705062325,66.10671544,114.76,114.75,8.7145]
[1743705063821,18.79181043,114.75,114.73,21.789]
[1743705064206,0.14216157,114.78,114.74,27.03058187]
[1743705064409,18.79181043,114.79,114.76,53.03058187]
[1743705064611,18.79181043,114.79,114.76,26.0]
[1743705066233,18.79181043,114.79,114.77,8.713]
[1743705066732,154.79181043,114.79,114.77,8.713]
[1743705067140,136.0,114.8,114.77,73.57990841]
[1743705067434,156.0,114.83,114.79,43.08430841]
[1743705067628,18.79181043,114.82,114.78,43.08430841]
[1743705067824,61.87611884,114.82,114.77,75.10570841]
[1743705068023,61.87611884,114.8,114.77,30.4956]
[1743705068232,197.87611884,114.8,114.77,30.4956]
[1743705068649,154.79181043,114.8,114.77,30.4956]
[1743705069240,136.0,114.8,114.78,43.08430841]
[1743705069820,136.0,114.8,114.79,43.08430841]
[1743705070845,136.0,114.8,114.79,8.7115]
[1743705071249,43.08430841,114.84,114.79,73.57470841]
[1743705071423,179.08430841,114.84,114.79,73.57470841]
[1743705071735,136.0,114.84,114.79,73.57470841]
[1743705071927,179.08430841,114.84,114.79,73.57470841]
[1743705073130,61.87611884,114.83,114.79,30.4904]
[1743705073747,18.79181043,114.83,114.79,73.57470841]
[1743705074442,136.0,114.83,114.79,73.57470841]
[1743705074748,136.0,114.83,114.8,43.08430841]
[1743705075351,136.0,114.83,114.79,43.08430841]
[1743705076549,136.0,114.84,114.77,117.6261]
[1743705076728,136.0,114.84,114.8,69.08430841]
[1743705076925,154.79181043,114.85,114.81,43.08430841]
[1743705077329,154.79181043,114.85,114.82,8.7092]
[1743705077744,179.22646998,114.85,114.82,8.7092]
[1743705078141,136.14216157,114.85,114.82,30.4824]
[1743705078453,136.0,114.85,114.82,30.4824]
[1743705078653,156.0,114.89,114.84,43.08430841]
[1743705078955,136.0,114.88,114.84,43.08430841]
[1743705079152,18.79181043,114.86,114.82,30.4824]
[1743705079458,136.0,114.85,114.82,30.4824]
[1743705080459,179.08430841,114.85,114.82,8.7092]
[1743705080660,43.08430841,114.83,114.81,8.7096]
[1743705080829,136.0,114.82,114.81,8.7096]
[1743705081563,136.0,114.82,114.79,43.08430841]
[1743705082263,43.08430841,114.82,114.77,74.0608]
[1743705082558,136.0,114.82,114.78,43.08430841]
[1743705082768,136.0,114.82,114.79,43.08430841]
[1743705083251,136.0,114.82,114.78,43.08430841]
[1743705083431,199.08430841,114.82,114.79,8.7115]
[1743705083841,43.08430841,114.81,114.79,8.7115]
[1743705084033,43.08430841,114.8,114.79,8.7115]
[1743705084445,61.87611884,114.81,114.79,8.7115]
[1743705085047,136.0,114.8,114.79,8.7115]
[1743705085434,136.0,114.8,114.77,8.713]
[1743705085435,199.08430841,114.8,114.77,8.713]
[1743705085625,136.0,114.79,114.77,30.4956]
[1743705085844,136.0,114.8,114.77,30.4956]
[1743705086449,136.0,114.8,114.77,57.41613131]
[1743705086646,136.0,114.8,114.78,26.92053131]
[1743705086935,31.22918093,114.9,114.79,26.92053131]
[1743705086936,136.0,114.83,114.79,26.92053131]
[1743705087274,136.0,114.85,114.82,26.92053131]
[1743705087430,136.0,114.86,114.84,8.7077]
[1743705088950,199.02315362,114.86,114.82,8.7092]
[1743705089732,199.02315362,114.86,114.82,30.4824]
[1743705090542,136.0,114.85,114.82,30.4824]
[1743705090941,136.0,114.85,114.82,73.50555362]
[1743705091236,46.793972,114.88,114.83,43.02315362]
[1743705091237,179.16531519,114.87,114.83,43.02315362]
[1743705091650,179.16531519,114.87,114.82,73.50555362]
[1743705091851,179.16531519,114.87,114.82,30.4824]
[1743705092156,43.02315362,114.86,114.82,30.4824]
[1743705092339,81.81496405,114.85,114.82,30.4824]
[1743705092538,38.79181043,114.85,114.82,30.4824]
[1743705092739,43.02315362,114.86,114.82,30.4824]
[1743705093356,43.02315362,114.84,114.82,8.7092]
[1743705093933,43.02315362,114.83,114.8,30.4868]
[1743705094345,156.0,114.85,114.8,30.4868]
[1743705094346,136.0,114.85,114.81,43.02315362]
[1743705094643,136.0,114.85,114.82,43.02315362]
[1743705095349,136.0,114.85,114.81,43.02315362]
[1743705095662,199.02315362,114.85,114.8,73.50995362]
[1743705097253,179.02315362,114.84,114.8,73.50995362]
[1743705097451,217.81496405,114.83,114.8,30.4868]
[1743705097648,217.81496405,114.83,114.8,8.7108]
[1743705097961,217.81496405,114.83,114.79,30.4904]
[1743705098139,136.0,114.82,114.79,73.51355362]
[1743705099561,136.0,114.82,114.81,43.02315362]
[1743705099754,136.0,114.85,114.81,43.02315362]
[1743705100140,179.02315362,114.85,114.82,8.7092]
[1743705100344,63.02315362,114.85,114.82,8.7092]
[1743705100544,43.02315362,114.84,114.82,8.7092]
[1743705101667,179.16531519,114.83,114.81,8.7096]
[1743705101871,199.02315362,114.83,114.81,8.7096]
[1743705102368,43.02315362,114.82,114.79,8.7115]
[1743705102669,179.02315362,114.81,114.79,8.7115]
[1743705103665,154.79181043,114.8,114.79,8.7115]
[1743705103858,217.81496405,114.8,114.79,8.7115]
[1743705104054,81.81496405,114.8,114.79,8.7115]
[1743705104373,81.81496405,114.8,114.78,21.7802]
[1743705104561,136.0,114.79,114.78,21.7802]
[1743705104766,156.0,114.8,114.78,21.7802]
[1743705105072,199.02315362,114.8,114.78,21.7802]
[1743705105671,136.0,114.79,114.78,21.7802]
[1743705108374,136.0,114.79,114.78,30.4925]
[1743705108590,179.02315362,114.81,114.78,30.4925]
[1743705109882,162.92037671,114.81,114.78,30.4925]
[1743705110377,38.79181043,114.78,114.73,371.405]
[1743705110557,26.92037671,114.77,114.74,30.5036]
[1743705110975,26.92037671,114.76,114.74,8.7153]
[1743705111179,26.92037671,114.75,114.73,8.7158]
[1743705111382,26.92037671,114.74,114.73,8.7158]
[1743705111681,162.92037671,114.75,114.73,8.7158]
[1743705112258,136.0,114.75,114.73,8.7158]
[1743705112463,136.0,114.75,114.73,35.63617671]
[1743705113296,136.0,114.75,114.73,8.7158]
[1743705113476,46.92037671,114.75,114.73,8.7158]
[1743705114084,20.14216157,114.72,114.66,7.7563]
[1743705114283,26.92037671,114.71,114.66,34.67667671]
[1743705114487,26.92037671,114.71,114.68,21.7988]
[1743705114865,26.92037671,114.7,114.67,8.7206]
[1743705115667,201.71218714,114.69,114.67,8.7206]
[1743705115997,26.92037671,114.68,114.67,8.7206]
[1743705116183,65.71218714,114.69,114.67,8.7206]
[1743705116369,7.84,114.7,114.67,35.64097671]
[1743705117681,154.64964886,114.72,114.68,43.13805654]
[1743705117869,18.79181043,114.74,114.71,43.13805654]
[1743705118383,0.14216157,114.74,114.71,43.13805654]
[1743705118883,18.79181043,114.74,114.71,43.13805654]
[1743705119186,7.9411,114.77,114.73,43.13805654]
[1743705119390,0.14216157,114.78,114.75,43.13805654]
[1743705119694,18.79181043,114.78,114.76,8.7138]
[1743705121185,61.92986697,114.78,114.76,8.7138]
[1743705121484,18.79181043,114.78,114.76,8.7138]
[1743705121890,18.79181043,114.78,114.75,30.4998]
[1743705122265,61.92986697,114.78,114.75,30.4998]
[1743705122884,61.92986697,114.78,114.75,8.7145]
[1743705123583,136.0,114.78,114.75,51.85255654]
[1743705123769,18.79181043,114.79,114.77,43.13805654]
[1743705123959,136.0,114.8,114.78,51.85035654]
[1743705124164,21.5253,114.83,114.78,73.63105654]
[1743705124165,18.79181043,114.81,114.78,73.63105654]
[1743705124364,18.79181043,114.81,114.78,30.493]
[1743705124787,18.79181043,114.81,114.78,73.63105654]
[1743705124976,136.0,114.82,114.79,43.13805654]
[1743705125481,136.0,114.82,114.78,73.63105654]
[1743705125675,18.79181043,114.82,114.78,73.63105654]
[1743705125987,61.92986697,114.82,114.77,43.13805654]
[1743705126365,18.79181043,114.82,114.75,74.0738]
[1743705126578,197.92986697,114.82,114.77,43.13805654]
[1743705126976,18.79181043,114.8,114.77,43.13805654]
[1743705127374,20.0,114.81,114.77,43.13805654]
[1743705127585,154.79181043,114.82,114.79,43.13805654]
[1743705127882,136.0,114.83,114.81,43.13805654]
[1743705128063,154.79181043,114.84,114.81,43.13805654]
[1743705128461,154.79181043,114.84,114.8,69.13805654]
[1743705129586,154.79181043,114.84,114.81,43.13805654]
[1743705130289,154.79181043,114.84,114.82,8.7092]
[1743705131483,20.0,114.85,114.82,30.4824]
[1743705132674,161.25383357,114.84,114.78,8.7123]
[1743705132875,136.0,114.83,114.78,52.2738]
[1743705133204,16.5459,114.87,114.82,69.13805654]
[1743705133205,18.79181043,114.86,114.82,69.13805654]
[1743705133486,18.79181043,114.86,114.83,43.13805654]
[1743705135000,18.79181043,114.86,114.84,8.7077]
[1743705136806,136.0,114.88,114.86,8.7062]
[1743705136975,18.79181043,114.89,114.86,73.60985654]
[1743705137598,156.0,114.9,114.87,43.13805654]
[1743705138178,20.0,114.9,114.86,73.60985654]
[1743705138377,20.0,114.9,114.87,43.13805654]
[1743705138778,20.0,114.9,114.88,8.7047]
[1743705139081,46.80805654,114.92,114.88,8.7047]
[1743705139082,3.67,114.92,114.88,8.7047]
[1743705139374,3.67,114.92,114.89,43.13805654]
[1743705139791,3.67,114.92,114.88,73.60455654]
[1743705139792,66.80805654,114.92,114.88,73.60455654]
[1743705140179,20.0,114.92,114.88,73.60455654]
[1743705140786,0.28432314,114.93,114.9,8.7032]
[1743705141194,18.79181043,114.93,114.9,8.7032]
[1743705141395,78.90625654,114.94,114.9,8.7032]
[1743705141595,61.92986697,114.93,114.9,8.7032]
[1743705141789,74.89286697,114.93,114.9,8.7032]
[1743705142003,20.0,114.92,114.9,8.7032]
[1743705142205,61.92986697,114.93,114.9,8.7032]
[1743705142398,74.89286697,114.93,114.9,8.7032]
[1743705143203,18.79181043,114.91,114.88,43.13805654]
[1743705143400,81.92986697,114.91,114.86,73.60985654]
[1743705144090,217.92986697,114.91,114.86,73.60985654]
[1743705144292,174.79181043,114.91,114.88,43.13805654]
[1743705144489,156.0,114.91,114.88,43.13805654]
[1743705144706,136.0,114.91,114.89,43.13805654]
[1743705145210,136.0,114.91,114.9,8.7032]
[1743705148483,136.0,114.91,114.9,51.84125654]
[1743705148785,136.0,114.91,114.9,8.7032]
[1743705149000,154.79181043,114.91,114.89,8.7035]
[1743705149199,136.0,114.91,114.89,8.7035]
[1743705149390,136.0,114.91,114.89,51.84155654]
[1743705149590,136.0,114.91,114.89,8.7035]
[1743705150006,43.13805654,114.92,114.88,30.466]
[1743705150399,43.13805654,114.91,114.88,30.466]
[1743705150907,43.13805654,114.91,114.88,8.7047]
[1743705151114,63.13805654,114.89,114.85,8.707]
[1743705151321,199.13805654,114.89,114.85,8.707]
[1743705151615,199.13805654,114.89,114.85,51.84505654]
[1743705151793,26.88156876,114.88,114.85,8.707]
[1743705151988,26.88156876,114.88,114.84,30.4762]
[1743705152812,26.88156876,114.88,114.84,57.35776876]
[1743705153005,174.79181043,114.87,114.84,57.35776876]
[1743705153207,174.79181043,114.87,114.84,30.4762]
[1743705153508,201.67337919,114.87,114.84,8.7077]
[1743705153706,217.82099542,114.87,114.84,8.7077]
[1743705154008,217.82099542,114.87,114.83,8.7085]
[1743705154201,217.82099542,114.87,114.83,51.73768499]
[1743705154405,217.82099542,114.87,114.83,8.7085]
[1743705156095,43.02918499,114.86,114.83,8.7085]
[1743705156413,199.02918499,114.85,114.83,8.7085]
[1743705157502,156.0,114.85,114.83,8.7085]
[1743705157897,199.02918499,114.85,114.83,8.7085]
[1743705158103,199.02918499,114.85,114.82,8.7092]
[1743705158309,63.02918499,114.83,114.8,8.7108]
[1743705158493,81.67883385,114.81,114.77,64.81108499]
[1743705158694,217.67883385,114.81,114.77,64.81108499]
[1743705159016,217.67883385,114.81,114.77,43.02918499]
[1743705159203,136.14216157,114.8,114.77,43.02918499]
[1743705159412,136.0,114.8,114.77,43.02918499]
[1743705160097,43.02918499,114.8,114.76,43.02918499]
[1743705160390,81.82099542,114.79,114.75,43.02918499]
[1743705160615,43.02918499,114.78,114.74,43.02918499]
[1743705161218,81.82099542,114.79,114.74,43.02918499]
[1743705161395,38.79181043,114.79,114.75,43.02918499]
[1743705161704,81.82099542,114.79,114.75,43.02918499]
[1743705161930,43.02918499,114.78,114.74,43.02918499]
[1743705162318,43.02918499,114.78,114.75,8.7145]
[1743705163118,46.65181043,114.79,114.75,73.53008499]
[1743705163499,43.02918499,114.78,114.75,30.5009]
[1743705164015,89.68099542,114.79,114.75,30.5009]
[1743705164618,136.0,114.78,114.75,30.5009]
[1743705166721,92.08796157,114.84,114.79,21.7789]
[1743705167030,71.20878499,114.85,114.79,21.7789]
[1743705167201,153.76679542,114.84,114.79,21.7789]
[1743705167519,153.76679542,114.84,114.79,64.80808499]
[1743705167819,153.76679542,114.84,114.8,43.02918499]
[1743705168718,20.0,114.83,114.81,8.71]
[1743705168928,63.02918499,114.83,114.81,8.71]
[1743705169227,61.82099542,114.82,114.76,7.6051]
[1743705169404,154.97498499,114.81,114.77,30.4956]
[1743705169601,91.9458,114.81,114.8,43.02918499]
[1743705169795,111.9458,114.84,114.8,43.02918499]
[1743705170001,91.9458,114.84,114.81,43.02918499]
[1743705170827,91.9458,114.84,114.82,8.7092]
[1743705171528,91.9458,114.84,114.82,51.73838499]
[1743705172834,8.00216157,114.87,114.84,8.7077]
[1743705172835,91.9458,114.87,114.84,8.7077]